bitfinex/quotes_ETHUSD_20250114
["timestamp","ask_amount","ask_price","bid_price","bid_amount"]
[1736824626234,3.30036,3167.2,3166.7,0.15735013]
[1736824626435,0.143,3167.2,3166.7,0.15735013]
[1736824626800,3.15718,3167.4,3166.7,0.15735013]
[1736824627032,0.144,3167.3,3166.7,0.15735013]
[1736824627419,3.15736,3167.2,3166.7,0.15735013]
[1736824627637,3.15764,3167.0,3166.7,0.15735013]
[1736824627838,3.15764,3167.0,3166.6,0.7832]
[1736824628165,0.330136,3167.1,3166.7,0.15307963]
[1736824628508,0.144,3167.3,3166.7,0.15307963]
[1736824628709,0.144,3167.3,3166.6,0.7832]
[1736824628914,0.144,3167.3,3166.8,0.15307495]
[1736824629224,0.144,3167.3,3166.7,0.03157718]
[1736824629225,0.144,3167.3,3166.6,0.7832]
[1736824629569,0.144,3167.2,3166.7,0.15307963]
[1736824630171,0.474129,3167.2,3166.7,0.15307963]
[1736824630402,3.15776,3166.8,3166.7,0.15307963]
[1736824630703,3.15776,3166.8,3166.3,0.7867]
[1736824630869,3.15776,3166.8,3166.7,0.15307963]
[1736824631201,3.15755,3167.1,3166.8,0.7867]
[1736824631787,0.144,3167.0,3166.8,0.7867]
[1736824635561,0.144,3167.0,3166.9,0.15307027]
[1736824635874,0.144,3167.0,3166.8,0.7867]
[1736824636261,0.144,3167.1,3166.9,0.15307027]
[1736824636474,0.144,3167.1,3166.8,0.7867]
[1736824636674,0.144,3167.1,3166.9,0.15307027]
[1736824636876,0.144,3167.1,3166.8,0.7867]
[1736824637199,3.30147,3167.1,3166.9,0.15307027]
[1736824637399,0.144,3167.1,3166.8,0.7867]
[1736824637600,0.144,3167.1,3167.0,0.15306559]
[1736824637812,0.144,3167.1,3166.8,0.7867]
[1736824638031,3.30146,3167.1,3166.8,0.7867]
[1736824640705,0.144,3167.1,3166.8,0.7867]
[1736824640894,3.30146,3167.1,3166.9,0.15311697]
[1736824641089,3.30146,3167.1,3166.8,0.7867]
[1736824642153,3.30146,3167.1,3166.2,0.8235]
[1736824642320,3.30146,3167.1,3166.9,0.15311697]
[1736824642517,3.30146,3167.1,3166.2,2.05476839]
[1736824642734,0.7976,3167.0,3166.2,0.8235]
[1736824643058,3.15786,3166.7,3166.3,0.15314505]
[1736824643556,0.7976,3167.0,3166.4,0.15314037]
[1736824643853,3.15767,3166.9,3166.2,0.8235]
[1736824644018,0.144,3167.1,3166.6,0.8235]
[1736824644218,3.15704,3167.6,3166.6,0.8235]
[1736824644437,3.15678,3167.8,3166.8,0.8235]
[1736824644646,0.144,3167.8,3167.0,3.98104]
[1736824644812,0.144,3167.8,3166.9,3.07065819]
[1736824644813,0.144,3167.8,3167.2,3.98086]
[1736824645004,3.15619,3168.4,3167.4,3.98064]
[1736824645204,0.144,3168.3,3167.5,0.8235]
[1736824645419,0.144,3168.3,3167.5,1.00837918]
[1736824645648,0.144,3168.3,3167.7,0.8235]
[1736824645856,0.144,3168.3,3167.8,0.42961042]
[1736824646027,0.144,3168.3,3167.8,0.58291105]
[1736824646362,0.144,3168.3,3167.8,0.55134663]
[1736824646659,0.144,3168.3,3167.8,0.15330063]
[1736824647227,3.15666,3167.9,3167.8,0.15330063]
[1736824647440,3.15649,3168.1,3167.8,0.15330063]
[1736824647640,3.15649,3168.1,3167.4,0.03156958]
[1736824647857,3.15649,3168.1,3167.3,0.8235]
[1736824648154,3.15603,3168.6,3167.4,0.14801178]
[1736824648317,0.7976,3168.7,3167.4,0.14801178]
[1736824648318,0.144,3168.2,3167.5,0.8235]
[1736824648518,0.144,3168.2,3167.5,0.97150711]
[1736824648947,0.144,3168.2,3167.7,0.7515]
[1736824649357,0.144,3168.2,3167.8,0.14799307]
[1736824649950,0.144,3168.2,3167.8,0.17955739]
[1736824650651,3.15586,3168.8,3167.8,0.17955739]
[1736824650963,0.143,3169.1,3168.1,0.7515]
[1736824651123,0.143,3169.1,3168.3,0.7515]
[1736824651323,3.15558,3169.0,3168.3,0.7515]
[1736824651654,3.15558,3169.0,3168.4,0.14795725]
[1736824651818,3.29858,3169.0,3168.4,0.14795725]
[1736824652221,3.15571,3168.9,3168.4,0.14795725]
[1736824652419,0.143,3169.0,3168.4,0.14795725]
[1736824653044,3.15549,3169.1,3168.4,0.14795725]
[1736824653363,0.143,3169.0,3168.4,0.14795725]
[1736824654069,3.15549,3169.1,3168.4,0.14795725]
[1736824654280,0.143,3169.0,3168.4,0.14795725]
[1736824655864,3.15567,3168.9,3168.4,0.14795725]
[1736824656273,3.15567,3168.9,3168.3,0.7515]
[1736824656428,3.15567,3168.9,3168.5,0.14768848]
[1736824656632,3.15567,3168.9,3168.4,0.14769315]
[1736824656967,0.143,3169.0,3168.5,0.14768848]
[1736824657170,0.143,3169.0,3168.3,0.7515]
[1736824657468,0.143,3169.0,3168.6,0.1476838]
[1736824657665,0.143,3169.0,3168.4,0.0315585]
[1736824657875,0.143,3169.0,3168.7,0.14767913]
[1736824658029,0.143,3169.0,3168.3,0.7515]
[1736824658235,0.7918,3169.4,3168.1,0.03155654]
[1736824658236,3.15522,3169.4,3168.9,0.7515]
[1736824658438,0.143,3169.3,3168.9,0.7515]
[1736824658870,0.143,3169.3,3169.0,0.14766511]
[1736824659375,3.15536,3169.3,3169.0,0.14766511]
[1736824659575,3.15538,3169.2,3168.9,0.7515]
[1736824664178,0.143,3169.3,3168.9,0.7515]
[1736824664887,3.29827,3169.3,3168.9,0.7515]
[1736824665040,3.79276225,3169.5,3168.9,0.7515]
[1736824665377,3.93576225,3169.5,3168.9,0.7515]
[1736824665879,3.93576225,3169.5,3169.0,0.14685748]
[1736824666566,0.143,3169.4,3169.0,0.14685748]
[1736824666770,3.2982,3169.4,3169.0,0.14685748]
[1736824668187,3.15538,3169.2,3169.0,0.14685748]
[1736824668482,0.53658823,3169.4,3168.3,0.7638]
[1736824668665,3.15559,3169.0,3168.3,0.7638]
[1736824668982,3.15559,3169.0,3168.4,0.14688552]
[1736824669345,3.15537,3169.2,3168.4,0.14688552]
[1736824669547,3.15624,3168.4,3168.0,0.7638]
[1736824669969,3.15632,3168.3,3167.5,0.7638]
[1736824671286,3.15632,3168.3,3167.5,0.79536443]
[1736824671460,3.15609,3168.5,3167.5,0.79536443]
[1736824671675,3.15584,3168.8,3167.7,0.7638]
[1736824671878,3.29884,3168.8,3167.9,0.7638]
[1736824672096,3.29884,3168.8,3167.8,0.03156082]
[1736824672097,0.143,3168.8,3168.1,0.7638]
[1736824673101,3.15587,3168.7,3168.1,0.7638]
[1736824673288,0.143,3168.8,3168.1,0.7638]
[1736824673486,0.143,3168.8,3168.2,0.03155933]
[1736824673666,0.143,3168.8,3168.1,0.7638]
[1736824674001,0.143,3168.8,3168.3,0.7638]
[1736824677385,0.143,3168.8,3168.4,0.1469864]
[1736824677610,0.143,3168.8,3168.3,0.7638]
[1736824677935,0.143,3168.8,3168.5,0.14698173]
[1736824678201,0.143,3168.8,3168.6,0.14697705]
[1736824678403,0.143,3168.8,3168.3,0.7638]
[1736824678698,0.143,3168.8,3168.7,0.14697238]
[1736824678997,0.143,3168.8,3168.3,0.7638]
[1736824679424,0.143,3168.8,3168.4,0.1469864]
[1736824679597,0.143,3168.8,3168.3,0.7638]
[1736824679799,0.143,3168.8,3168.5,0.14698173]
[1736824680103,0.143,3168.8,3168.6,0.14697705]
[1736824680310,0.143,3168.8,3168.3,0.7638]
[1736824680505,0.143,3168.8,3168.4,0.1469864]
[1736824680721,0.143,3168.8,3168.3,0.7638]
[1736824680922,0.143,3168.8,3168.4,0.1469864]
[1736824681108,0.143,3168.8,3168.3,0.7638]
[1736824681311,0.143,3168.8,3168.4,0.1469864]
[1736824681489,0.143,3168.8,3168.3,0.7638]
[1736824681688,0.143,3168.8,3168.4,0.1469864]
[1736824682118,0.143,3168.8,3168.5,0.14698173]
[1736824682430,0.143,3168.8,3168.3,0.79535933]
[1736824682719,0.143,3168.8,3168.3,0.7638]
[1736824683023,0.143,3168.8,3168.4,0.1469864]
[1736824683223,0.143,3168.8,3168.3,0.7638]
[1736824683423,0.143,3168.8,3168.5,0.14698173]
[1736824683611,0.143,3168.8,3168.3,0.7638]
[1736824683919,0.143,3168.8,3168.6,0.14697705]
[1736824684121,3.15519,3169.4,3168.5,0.8102]
[1736824684325,3.92939285,3169.3,3168.8,0.8102]
[1736824684484,3.15537,3169.2,3168.8,0.8102]
[1736824684816,3.92939285,3169.3,3168.9,0.14696303]
[1736824685118,0.142,3169.2,3168.8,0.8102]
[1736824685318,0.142,3169.2,3169.0,0.14695836]
[1736824685631,0.142,3169.2,3169.1,0.14695369]
[1736824685803,0.142,3169.2,3168.8,0.8102]
[1736824686205,0.142,3169.2,3168.9,0.14696303]
[1736824686405,0.142,3169.2,3168.8,0.8102]
[1736824686729,0.142,3169.2,3169.0,0.14695836]
[1736824686937,0.142,3169.2,3168.9,0.14696303]
[1736824687089,0.142,3169.2,3169.1,0.14695369]
[1736824687288,0.142,3169.2,3168.8,0.8102]
[1736824687704,0.142,3169.2,3168.9,0.14696303]
[1736824687943,0.142,3169.2,3168.8,0.8102]
[1736824688138,0.142,3169.2,3169.0,0.14695836]
[1736824688306,0.142,3169.2,3168.8,0.8102]
[1736824688501,0.142,3169.2,3168.9,0.14696303]
[1736824688826,0.142,3169.2,3168.8,0.8102]
[1736824689034,0.142,3169.2,3169.0,0.14695836]
[1736824689193,0.142,3169.2,3168.8,0.8102]
[1736824689392,3.8087,3169.7,3169.1,0.14695369]
[1736824689393,3.96358,3169.7,3169.1,0.14695369]
[1736824689724,0.142,3169.6,3169.0,0.8102]
[1736824689935,0.142,3169.6,3169.2,0.1465142]
[1736824690087,0.142,3169.6,3169.1,0.1780009]
[1736824690290,3.79999232,3169.7,3169.2,0.14644433]
[1736824690491,0.142,3169.8,3169.1,0.03155139]
[1736824690742,0.142,3169.8,3169.2,0.14643656]
[1736824690939,0.142,3169.8,3169.3,0.8102]
[1736824691136,0.142,3169.8,3169.4,0.14629525]
[1736824691435,0.77275823,3169.8,3169.4,0.14629525]
[1736824691591,3.15487,3169.7,3169.4,0.14629525]
[1736824691790,3.15487,3169.7,3169.3,0.8102]
[1736824692197,3.15487,3169.7,3169.4,0.14629525]
[1736824692742,3.15487,3169.7,3169.3,0.8102]
[1736824693040,3.15487,3169.7,3169.4,0.14629525]
[1736824693536,3.15487,3169.7,3169.3,0.8102]
[1736824693697,3.15487,3169.7,3169.4,0.14629525]
[1736824694038,3.15487,3169.7,3169.3,0.8102]
[1736824694259,3.15498,3169.6,3169.3,0.8102]
[1736824694461,3.15509,3169.5,3169.4,0.14629525]
[1736824694614,0.8092,3169.4,3168.9,0.7651]
[1736824694812,0.8092,3169.4,3168.6,0.7651]
[1736824695012,0.8092,3169.4,3169.0,0.14615093]
[1736824695314,3.15544,3169.2,3168.6,0.7651]
[1736824695529,3.96439,3169.4,3168.7,0.14616495]
[1736824698148,3.15519,3169.4,3168.7,0.14616495]
[1736824699852,0.63139391,3169.3,3168.7,0.14616495]
[1736824701734,3.78667391,3169.3,3168.7,0.14616495]
[1736824705056,3.15528,3169.3,3168.7,0.14616495]
[1736824705459,3.15519,3169.4,3168.7,0.17771996]
[1736824705856,3.15519,3169.4,3168.8,0.7651]
[1736824706160,3.15519,3169.4,3168.9,0.14579807]
[1736824706331,3.15519,3169.4,3168.8,0.7651]
[1736824706533,3.15528,3169.3,3168.9,0.14579807]
[1736824706735,0.8092,3169.2,3168.9,0.14579807]
[1736824706941,3.15556,3169.0,3168.3,0.7651]
[1736824707255,3.15556,3169.0,3168.4,0.14582144]
[1736824713470,4.10665,3169.2,3168.4,0.14582144]
[1736824717280,0.9512,3169.2,3168.4,0.14582144]
[1736824717486,3.15547,3169.1,3168.4,0.76291358]
[1736824718473,0.9512,3169.2,3168.4,0.76291358]
[1736824719888,0.142,3169.2,3168.5,0.807]
[1736824720292,0.142,3169.2,3168.6,0.14599066]
[1736824725160,3.15586,3168.7,3168.6,0.14599066]
[1736824725359,3.15586,3168.7,3168.2,0.807]
[1736824725556,3.1557,3168.9,3168.3,0.14640836]
[1736824725959,0.142,3169.2,3168.4,0.8226]
[1736824726297,3.15535,3169.3,3168.6,0.8226]
[1736824726455,0.142,3169.2,3168.7,0.03155624]
[1736824726656,0.8143,3169.9,3168.8,0.8226]
[1736824726998,0.142,3169.6,3169.0,0.8226]
[1736824727157,3.0,3169.5,3169.0,0.8226]
[1736824727352,0.142,3169.6,3169.1,0.14650298]
[1736824727589,3.15507,3169.5,3169.1,0.14650298]
[1736824728482,3.0,3169.6,3169.1,0.14650298]
[1736824728799,3.15502,3169.6,3169.1,0.14650298]
[1736824729497,3.15502,3169.6,3169.2,0.8226]
[1736824729673,3.15502,3169.6,3169.2,0.96909831]
[1736824729873,3.15518,3169.4,3169.2,0.8226]
[1736824731704,3.15518,3169.4,3168.6,0.8226]
[1736824731914,0.8143,3169.5,3168.6,0.8226]
[1736824732114,3.15576,3168.8,3168.7,0.14652167]
[1736824732291,3.471336,3168.8,3168.7,0.14652167]
[1736824732611,3.15591,3168.7,3168.4,0.8226]
[1736824732816,0.8143,3169.3,3168.4,0.8226]
[1736824733111,3.1553,3169.3,3168.6,0.8226]
[1736824733311,3.1553,3169.3,3168.8,0.8226]
[1736824733817,0.142,3169.5,3168.9,0.14650456]
[1736824733818,3.2971,3169.5,3168.9,0.14650456]
[1736824734116,3.2971,3169.5,3169.0,0.8226]
[1736824734284,3.96863,3170.3,3169.1,0.8541548]
[1736824734492,3.15448,3170.1,3169.1,0.85414983]
[1736824734690,3.0,3169.9,3169.3,0.8226]
[1736824734992,0.63600061,3169.8,3169.4,0.14631039]
[1736824735202,3.15438,3170.2,3169.5,0.85414964]
[1736824735390,0.142,3170.5,3169.5,0.96870388]
[1736824735574,3.1544,3170.2,3169.5,0.96870388]
[1736824736699,3.1544,3170.2,3169.6,0.03154675]
[1736824736901,3.0,3170.2,3169.7,0.8226]
[1736824737216,3.0,3170.2,3169.7,0.96869454]
[1736824738516,3.2961,3170.5,3169.8,0.03154517]
[1736824738732,3.91704912,3170.5,3169.9,0.7916]
[1736824739015,3.91704912,3170.5,3169.9,0.9376852]
[1736824739610,3.91704912,3170.5,3169.9,0.7916]
[1736824744049,3.77504912,3170.5,3169.9,0.7916]
[1736824744218,3.1541,3170.5,3169.9,0.7916]
[1736824744427,3.15336,3171.3,3170.2,3.0390858]
[1736824744665,0.7989,3171.5,3170.6,0.7916]
[1736824744666,3.15308,3171.5,3170.6,0.7916]
[1736824744955,3.15308,3171.5,3170.8,0.7916]
[1736824745134,3.1529,3171.7,3170.9,0.03153374]
[1736824745334,3.48239,3171.7,3170.9,0.93612508]
[1736824745519,3.15269,3171.9,3171.0,0.03153364]
[1736824745826,0.142,3171.8,3171.1,0.7916]
[1736824746027,3.29479,3171.8,3171.1,0.93611574]
[1736824746729,3.15303,3171.6,3171.1,0.93611574]
[1736824746954,0.7989,3171.7,3171.1,0.14451574]
[1736824747158,3.15298,3171.6,3171.1,0.14451574]
[1736824747466,3.1533,3171.3,3170.8,0.7916]
[1736824747853,3.1534,3171.2,3170.9,0.14452508]
[1736824748354,3.1534,3171.2,3170.8,0.7916]
[1736824748558,0.395188,3171.5,3170.8,0.7916]
[1736824748769,3.15348,3171.1,3170.8,0.7916]
[1736824750989,0.142,3171.3,3170.8,0.7916]
[1736824751163,3.2953,3171.3,3170.8,0.7916]
[1736824751880,3.2953,3171.3,3170.9,0.14325297]
[1736824752247,3.2953,3171.3,3170.8,0.7916]
[1736824752647,3.2953,3171.3,3170.9,0.14325297]
[1736824752885,3.6643488,3171.3,3170.9,0.14325297]
[1736824753082,0.5110488,3171.3,3170.8,0.7916]
[1736824753286,0.142,3171.3,3170.8,0.7916]
[1736824753463,3.15352,3171.1,3170.8,0.7916]
[1736824754587,0.61807001,3171.0,3170.8,0.7916]
[1736824754756,3.29531,3171.3,3170.8,0.7916]
[1736824754955,3.29531,3171.3,3170.9,0.14319093]
[1736824755163,3.29531,3171.3,3170.8,0.7916]
[1736824755368,3.29531,3171.3,3170.9,0.14319093]
[1736824755563,3.29531,3171.3,3170.8,0.7916]
[1736824755763,3.1534,3171.2,3170.9,0.14319093]
[1736824755968,3.1534,3171.2,3170.8,0.7916]
[1736824756183,3.1534,3171.2,3170.9,0.14319093]
[1736824756381,3.1534,3171.2,3170.8,0.7916]
[1736824756585,1.09611034,3171.3,3170.9,0.14319093]
[1736824756857,3.15358,3171.0,3170.8,0.7916]
[1736824757894,0.76657934,3171.3,3170.8,0.7916]
[1736824758086,3.15348,3171.1,3170.8,0.7916]
[1736824758304,3.91986934,3171.3,3170.8,0.7916]
[1736824758889,3.91986934,3171.3,3170.9,0.14319093]
[1736824759197,0.142,3171.3,3170.8,0.7916]
[1736824759383,3.29528,3171.3,3170.8,0.7916]
[1736824759571,0.142,3171.3,3170.9,0.14319093]
[1736824760704,3.29531,3171.3,3170.9,0.14319093]
[1736824764204,3.15331,3171.3,3170.9,0.14319093]
[1736824764406,3.15331,3171.3,3170.3,3.25094396]
[1736824764407,0.142,3171.6,3171.0,0.7672]
[1736824764606,3.15338,3171.2,3171.0,0.91030097]
[1736824765371,6.15258,3172.0,3171.0,0.91030097]
[1736824765372,0.7693,3172.0,3171.0,0.91030097]
[1736824765697,3.29475,3171.9,3171.2,0.7672]
[1736824766125,3.29475,3171.9,3171.3,0.14300167]
[1736824768329,3.92048065,3171.9,3171.3,0.14300167]
[1736824768903,0.7986,3172.4,3171.4,0.86253103]
[1736824769127,3.15209,3172.5,3171.5,0.831]
[1736824769439,3.15209,3172.5,3171.6,0.86252647]
[1736824769722,3.0,3172.4,3171.6,1.00520403]
[1736824770595,3.62067527,3172.4,3171.6,1.00520403]
[1736824771204,0.62067527,3172.4,3171.6,1.00520403]
[1736824773762,0.62067527,3172.4,3171.7,0.3162]
[1736824773964,0.62067527,3172.4,3171.7,0.831]
[1736824774167,0.62067527,3172.4,3171.9,0.831]
[1736824774467,3.77290527,3172.4,3171.9,0.831]
[1736824774639,3.77290527,3172.4,3172.0,0.141783]
[1736824776466,3.15202,3172.6,3172.1,0.831]
[1736824776647,3.15202,3172.6,3172.1,0.96803217]
[1736824777672,0.142,3172.7,3172.1,0.96803217]
[1736824777849,3.15181,3172.8,3172.1,0.96803217]
[1736824778056,3.29381,3172.8,3172.1,0.96803217]
[1736824778366,3.15189,3172.7,3172.1,0.96803217]
[1736824784079,0.39401923,3172.7,3172.1,0.96803217]
[1736824784284,0.7986,3172.7,3172.1,0.13703217]
[1736824784444,3.15238,3172.2,3171.9,0.831]
[1736824785044,0.7986,3172.7,3171.9,0.831]
[1736824785262,3.15201,3172.6,3171.9,0.831]
[1736824785566,3.15201,3172.6,3172.0,0.13703683]
[1736824785735,3.861271,3172.6,3172.0,0.13703683]
[1736824785930,3.15201,3172.6,3172.0,0.13703683]
[1736824786755,3.15201,3172.6,3172.1,0.831]
[1736824786970,0.142,3172.5,3172.1,0.831]
[1736824787269,0.142,3172.5,3172.2,0.13702751]
[1736824787472,0.142,3172.5,3172.1,0.831]
[1736824787667,0.142,3172.5,3172.3,0.13702284]
[1736824788060,0.142,3172.5,3172.1,0.831]
[1736824788268,0.142,3172.5,3172.4,0.13698718]
[1736824788476,0.142,3172.5,3172.1,0.831]
[1736824788671,0.142,3172.5,3172.4,0.13698718]
[1736824788888,0.142,3172.5,3172.1,0.831]
[1736824789085,0.142,3172.5,3172.4,0.13698718]
[1736824789284,0.142,3172.5,3172.1,0.831]
[1736824789581,0.142,3172.5,3172.4,0.13698718]
[1736824789785,0.142,3172.5,3172.1,0.831]
[1736824790152,0.142,3172.5,3172.2,0.13699651]
[1736824790576,0.142,3172.5,3172.1,0.831]
[1736824790964,0.142,3172.5,3172.2,0.13699651]
[1736824791391,0.142,3172.5,3172.1,0.831]
[1736824791684,0.142,3172.5,3172.2,0.13699651]
[1736824791888,0.142,3172.5,3172.1,0.831]
[1736824792286,0.142,3172.5,3172.2,0.13699651]
[1736824792456,0.142,3172.5,3172.1,0.831]
[1736824792657,0.142,3172.5,3172.3,0.13699184]
[1736824792894,0.142,3172.5,3172.1,0.831]
[1736824793052,0.142,3172.5,3172.4,0.13698718]
[1736824793260,0.142,3172.5,3172.1,0.831]
[1736824793459,3.15181,3172.8,3172.1,0.831]
[1736824793764,0.63216212,3172.7,3172.3,0.831]
[1736824794182,0.63216212,3172.7,3172.4,0.13698718]
[1736824795300,0.63216212,3172.7,3172.3,0.831]
[1736824795499,3.78406212,3172.7,3172.5,0.13698252]
[1736824795695,4.17666833,3172.7,3172.3,0.831]
[1736824795910,4.17666833,3172.7,3172.6,0.13697785]
[1736824796208,4.17666833,3172.7,3172.3,0.831]
[1736824796423,1.43076212,3172.7,3172.0,0.831]
[1736824796597,1.43076212,3172.7,3172.4,0.13698718]
[1736824796800,3.15232,3172.3,3171.5,0.831]
[1736824797005,3.15248,3172.2,3171.5,0.831]
[1736824797312,3.15245,3172.2,3171.6,0.1360559]
[1736824797894,3.15258,3172.0,3171.6,0.1360559]
[1736824798093,3.15283,3171.8,3171.6,0.1360559]
[1736824798288,4.09348,3171.7,3171.6,0.1360559]
[1736824798583,3.15324,3171.4,3170.9,0.831]
[1736824798803,3.29488,3171.7,3170.2,3.15428]
[1736824799110,0.8192,3171.4,3171.0,0.13591343]
[1736824799291,0.397228,3171.3,3170.4,0.7904]
[1736824799509,0.8192,3171.4,3170.4,0.7904]
[1736824799720,3.15347,3171.2,3170.4,0.7904]
[1736824799876,0.8192,3171.4,3170.5,0.13593677]
[1736824800224,3.15348,3171.1,3170.5,0.13593677]
[1736824801110,0.8192,3171.4,3170.5,0.13593677]
[1736824801314,3.15374,3170.9,3170.5,0.13593677]
[1736824801621,3.15382,3170.8,3170.5,0.13593677]
[1736824803323,3.78095176,3171.0,3170.4,0.7904]
[1736824803555,0.62736176,3171.0,3170.4,0.7904]
[1736824803728,0.62736176,3171.0,3170.5,0.13593677]
[1736824806128,3.97246,3171.4,3170.5,0.13593677]
[1736824806316,0.142,3171.3,3170.6,0.84023786]
[1736824806513,0.142,3171.3,3170.6,0.97616996]
[1736824806717,0.8255,3171.7,3170.7,3.15387]
[1736824806912,3.40153,3173.1,3170.9,0.8087]
[1736824806913,3.15257,3172.1,3170.9,0.8087]
[1736824807139,0.142,3172.1,3171.1,0.8087]
[1736824807464,0.77940916,3172.1,3171.3,0.8087]
[1736824807624,0.63740916,3172.1,3171.3,1.20806805]
[1736824807824,3.15259,3172.0,3171.3,1.20806805]
[1736824808136,0.77940916,3172.1,3171.4,0.13589477]
[1736824808337,3.15289,3171.7,3171.3,0.8087]
[1736824808638,3.15319,3171.4,3170.6,0.8087]
[1736824808957,3.15319,3171.4,3170.7,0.13681087]
[1736824809861,0.55,3171.6,3170.7,0.13681087]
[1736824810030,3.0,3171.5,3170.7,0.13681087]
[1736824810223,0.670298,3171.4,3170.7,0.13681087]
[1736824811028,3.15348,3171.1,3170.7,0.13681087]
[1736824811247,3.15348,3171.1,3170.6,0.8087]
[1736824811248,0.142,3171.0,3170.6,0.8087]
[1736824811648,0.142,3171.0,3170.7,0.13681087]
[1736824813441,0.62377957,3171.9,3170.8,0.84023677]
[1736824813752,0.142,3171.9,3171.0,0.8087]
[1736824813953,0.142,3171.9,3171.2,0.8087]
[1736824814161,0.142,3171.9,3171.3,0.13767404]
[1736824815365,3.142,3172.2,3171.4,0.7677]
[1736824815573,3.142,3172.2,3171.4,1.17672648]
[1736824815881,0.142,3172.2,3171.5,0.1376492]
[1736824816168,3.29439,3172.2,3171.5,0.1376492]
[1736824816366,0.142,3172.2,3171.5,0.16917937]
[1736824816567,3.15187,3172.8,3171.6,0.7677]
[1736824816770,0.142,3172.6,3171.8,0.7677]
[1736824817070,3.77939041,3173.0,3172.0,0.7677]
[1736824817366,0.142,3172.9,3172.1,0.13715618]
[1736824817576,3.29369,3172.9,3172.1,0.13715618]
[1736824818268,0.142,3172.9,3172.2,0.7677]
[1736824818459,0.142,3173.2,3172.2,0.7677]
[1736824818655,3.142,3173.2,3172.3,0.54603275]
[1736824818974,0.142,3173.2,3172.3,0.54603275]
[1736824819166,3.15158,3173.1,3172.3,0.13714685]
[1736824819537,0.142,3173.2,3172.3,0.13714685]
[1736824819847,0.8234,3173.6,3172.4,0.79922039]
[1736824820051,3.15104,3173.6,3172.5,6.1911058]
[1736824820251,3.1508,3173.8,3172.7,3.91949]
[1736824820452,0.005,3174.1,3172.9,0.7677]
[1736824820652,0.147,3173.9,3173.1,0.7677]
[1736824821136,3.29774,3173.9,3173.2,0.13577986]
[1736824823787,0.005,3173.9,3173.2,0.13577986]
[1736824823967,0.147,3173.9,3173.3,0.7677]
[1736824824352,0.005,3173.9,3173.3,0.9034752]
[1736824824766,0.005,3173.9,3173.3,1.30088255]
[1736824825157,0.005,3173.9,3173.3,1.3323897]
[1736824826160,0.005,3173.9,3173.3,4.4836797]
[1736824827983,0.005,3173.9,3173.3,1.3323897]
[1736824828188,0.005,3173.9,3173.3,1.30088255]
[1736824829097,0.005,3173.9,3173.3,1.33238891]
[1736824830191,0.005,3173.9,3173.3,4.48367891]
[1736824830493,0.005,3173.9,3173.3,7.56380256]
[1736824830689,0.005,3173.9,3173.3,7.5322962]
[1736824832389,0.005,3173.9,3173.3,4.3585062]
[1736824833459,0.005,3173.9,3173.3,4.6747062]
[1736824834292,0.005,3173.9,3173.3,4.3585062]
[1736824835279,0.005,3173.9,3173.3,4.39001256]
[1736824835481,0.005,3173.9,3173.3,4.3585062]
[1736824837491,0.005,3173.9,3173.3,7.5097962]
[1736824838683,0.005,3173.9,3173.3,7.5322962]
[1736824839786,0.005,3173.9,3173.3,4.3810062]
[1736824839963,0.005,3173.9,3173.3,4.3585062]
[1736824840163,0.005,3173.9,3173.3,0.96109885]
[1736824841486,0.005,3173.9,3173.3,0.99260722]
[1736824841887,0.005,3173.9,3173.3,1.00010722]
[1736824842402,0.005,3173.9,3173.3,1.01510722]
[1736824842599,0.005,3173.9,3173.3,7.84030815]
[1736824843767,0.005,3173.9,3173.8,3.16579]
[1736824843993,0.005,3173.9,3173.8,10.47672054]
[1736824844202,0.005,3173.9,3173.8,11.08433511]
[1736824845223,0.005,3174.1,3174.0,3.73929]
[1736824845388,0.005,3174.1,3174.0,9.89189436]
[1736824845591,0.005,3174.1,3174.0,10.02193565]
[1736824845835,0.005,3174.1,3174.0,9.22193565]
[1736824845977,0.1620985,3174.9,3174.4,0.3162]
[1736824846307,0.1620985,3174.9,3174.8,6.9587]
[1736824846484,0.1620985,3174.9,3174.8,8.016075]
[1736824846805,0.1620985,3174.9,3174.8,8.49309657]
[1736824848436,0.1620985,3174.9,3174.8,8.17689657]
[1736824850830,0.1620985,3174.9,3174.8,2.00459657]
[1736824850994,0.1620985,3174.9,3174.8,1.03630927]
[1736824852179,0.1620985,3174.9,3174.8,4.20860927]
[1736824852913,0.1620985,3174.9,3174.8,1.02731799]
[1736824853101,0.1620985,3174.9,3174.8,1.00481799]
[1736824853305,0.1620985,3174.9,3174.8,0.21841799]
[1736824853513,0.1620985,3174.9,3174.8,0.24991166]
[1736824853714,0.1620985,3174.9,3174.8,0.57566204]
[1736824854030,0.1620985,3174.9,3174.8,0.54416837]
[1736824854183,0.1620985,3174.9,3174.8,0.21841799]
[1736824854723,0.1620985,3174.9,3174.8,0.05759642]
[1736824855507,0.1620985,3174.9,3174.8,0.24186866]
[1736824855947,0.1620985,3174.9,3174.8,0.21037454]
[1736824862039,0.9705985,3174.9,3174.8,0.21037454]
[1736824862441,0.9705985,3174.9,3174.8,0.05759642]
[1736824862943,0.9705985,3174.9,3174.0,0.05399798]
[1736824863271,0.1620985,3174.9,3174.3,3.0]
[1736824863407,0.1620985,3174.9,3174.4,0.48851591]
[1736824863608,0.1620985,3174.9,3174.6,0.0225]
[1736824863808,0.1620985,3174.9,3174.7,0.7692]
[1736824864010,0.1620985,3174.9,3174.7,0.98097005]
[1736824864555,0.1620985,3174.9,3174.7,0.21177005]
[1736824867244,0.79859294,3174.9,3174.7,0.21177005]
[1736824867447,0.1620985,3174.9,3174.7,0.21177005]